bitfinex/quotes_BTCUSD_20251230
["timestamp","ask_amount","ask_price","bid_price","bid_amount"]
[1767096715568,0.0114,87997.0,87985.0,0.0114]
[1767096715991,0.02276402,87997.0,87985.0,0.0114]
[1767096716236,0.02276402,87997.0,87987.0,0.51189678]
[1767096716565,0.0114,87997.0,87987.0,0.51189678]
[1767096717044,0.02276402,87997.0,87987.0,0.51189678]
[1767096717220,0.0114,87997.0,87987.0,0.51189678]
[1767096717420,0.02276402,87997.0,87987.0,0.51189678]
[1767096718146,0.0114,87997.0,87987.0,0.51189678]
[1767096718564,0.02276402,87997.0,87987.0,0.51189678]
[1767096719956,0.0114,87997.0,87987.0,0.51189678]
[1767096720355,0.05681346,88008.0,87997.0,0.001099]
[1767096720557,0.01136286,88006.0,87998.0,0.51189678]
[1767096720761,0.01136311,88004.0,87996.0,0.51189678]
[1767096720995,0.01136299,88005.0,87994.0,0.51189678]
[1767096721205,0.06817754,88006.0,87994.0,0.51189678]
[1767096721206,0.01136286,88006.0,87994.0,0.51189678]
[1767096721493,0.01136234,88010.0,87996.0,0.51189678]
[1767096721693,0.01136247,88009.0,88000.0,0.51189678]
[1767096722436,0.01136247,88009.0,87996.0,0.01136415]
[1767096722969,0.00968159,88009.0,87996.0,0.01136415]
[1767096723170,0.00798174,88009.0,87995.0,0.01136428]
[1767096724564,0.01136234,88010.0,87996.0,0.01136415]
[1767096724951,0.01136247,88009.0,87996.0,0.01136415]
[1767096725580,0.01136234,88010.0,87996.0,0.01136415]
[1767096725781,0.01136247,88009.0,87996.0,0.01136415]
[1767096726265,0.01136234,88010.0,87996.0,0.01136415]
[1767096727755,0.01131992,88010.0,87997.0,0.01136402]
[1767096727952,0.01131992,88010.0,87996.0,0.01136415]
[1767096728159,0.01136247,88009.0,87996.0,0.01136415]
[1767096728379,0.01131992,88010.0,87996.0,0.01136415]
[1767096728621,0.05681059,88012.0,87998.0,0.05681947]
[1767096728622,0.01136208,88012.0,87998.0,0.05681947]
[1767096728987,0.01136208,88012.0,87998.0,0.01136389]
[1767096729589,0.01136221,88011.0,87998.0,0.01136389]
[1767096729795,0.01136221,88011.0,87996.0,0.01136415]
[1767096729965,0.02296195,88013.0,87998.0,0.01136389]
[1767096730162,0.01136208,88012.0,87998.0,0.01136389]
[1767096730400,0.01136208,88012.0,87999.0,0.01136376]
[1767096730583,0.01136208,88012.0,87998.0,0.01136389]
[1767096731247,0.01136208,88012.0,87999.0,0.01136376]
[1767096731470,0.01136208,88012.0,87998.0,0.01136389]
[1767096731471,0.01136221,88011.0,87998.0,0.01136389]
[1767096731675,0.01136208,88012.0,87998.0,0.01136389]
[1767096731849,0.0116,88013.0,87998.0,0.01136389]
[1767096732200,0.02296195,88013.0,87999.0,0.01136376]
[1767096732649,0.01136208,88012.0,87998.0,0.06818272]
[1767096732869,0.02296195,88013.0,87999.0,0.01136376]
[1767096733150,0.0116,88013.0,88002.0,0.06818016]
[1767096733314,0.0116,88013.0,88002.0,0.01136337]
[1767096733958,0.0116,88013.0,88000.0,0.5233143]
[1767096734153,0.01153182,88013.0,88001.0,0.0113635]
[1767096734336,0.01153182,88013.0,88000.0,0.5233143]
[1767096734739,0.01153182,88013.0,88001.0,0.0113635]
[1767096735549,0.01188749,88017.0,88013.0,0.000549]
[1767096735735,0.01188749,88017.0,88002.0,0.06818026]
[1767096735736,0.01136169,88015.0,88002.0,0.01136337]
[1767096735943,0.01136157,88016.0,88003.0,0.01136324]
[1767096736236,0.01136157,88016.0,88002.0,0.01136337]
[1767096736621,0.01144264,88016.0,88002.0,0.01136337]
[1767096737021,0.01136169,88015.0,88001.0,0.22530099]
[1767096737259,0.01136169,88015.0,88002.0,0.01136337]
[1767096737457,0.01136169,88015.0,88001.0,0.22530099]
[1767096737458,0.01136182,88014.0,88001.0,0.1684835]
[1767096738446,0.01144264,88016.0,88003.0,0.01136324]
[1767096738642,0.01144264,88016.0,88002.0,0.01136337]
[1767096738852,0.01136169,88015.0,88001.0,0.1684835]
[1767096739065,0.01144264,88016.0,88002.0,0.01136337]
[1767096739463,0.01136169,88015.0,88001.0,0.1684835]
[1767096739669,0.01136169,88015.0,88002.0,0.01136337]
[1767096740512,0.01136169,88015.0,88001.0,0.1684835]
[1767096740657,8.107e-05,88016.0,88002.0,0.01136337]
[1767096740861,0.01144264,88016.0,88001.0,0.1684835]
[1767096741065,0.01136169,88015.0,88001.0,0.1684835]
[1767096741268,0.01136169,88015.0,88002.0,0.01136337]
[1767096741469,0.01144264,88016.0,88002.0,0.01136337]
[1767096741724,0.01136169,88015.0,88001.0,0.1684835]
[1767096741864,0.01136169,88015.0,88002.0,0.01136337]
[1767096742366,0.01144264,88016.0,88002.0,0.01136337]
[1767096742562,8.107e-05,88016.0,88002.0,0.01136337]
[1767096742790,8.107e-05,88016.0,88004.0,0.01136311]
[1767096743346,8.107e-05,88016.0,88001.0,0.15712]
[1767096743624,0.01136182,88014.0,88001.0,0.1684835]
[1767096743836,0.01136169,88015.0,88001.0,0.1684835]
[1767096744330,0.01136182,88014.0,88001.0,0.15712]
[1767096744737,0.01136221,88011.0,88001.0,0.15712]
[1767096744971,0.01136208,88012.0,88001.0,0.15712]
[1767096745915,0.01136195,88013.0,88001.0,0.15712]
[1767096746879,0.01136208,88012.0,88001.0,0.15712]
[1767096747672,0.01136221,88011.0,88001.0,0.15712]
[1767096747922,0.01136208,88012.0,88001.0,0.15712]
[1767096748045,0.01136221,88011.0,88001.0,0.15712]
[1767096748252,0.01136208,88012.0,88001.0,0.15712]
[1767096748649,0.01136195,88013.0,88001.0,0.15712]
[1767096749273,0.01136208,88012.0,88001.0,0.15712]
[1767096749481,0.01136221,88011.0,88001.0,0.15712]
[1767096749896,0.06817207,88013.0,88001.0,0.15712]
[1767096750104,0.01136208,88012.0,88001.0,0.15712]
[1767096750776,0.06817207,88013.0,88001.0,0.15712]
[1767096751172,0.06817207,88013.0,88001.0,0.0114]
[1767096751379,0.01136195,88013.0,88001.0,0.0114]
[1767096751611,0.01136208,88012.0,88001.0,0.0114]
[1767096752431,5.6e-05,88028.0,88014.0,0.01136182]
[1767096752644,5.6e-05,88028.0,88017.0,0.01136144]
[1767096752850,5.6e-05,88028.0,88018.0,0.01136131]
[1767096753057,5.6e-05,88028.0,88017.0,0.01136144]
[1767096753645,5.6e-05,88028.0,88015.0,0.01136169]
[1767096753785,5.6e-05,88028.0,88016.0,0.01136157]
[1767096754830,5.6e-05,88028.0,88015.0,0.01136169]
[1767096755044,5.6e-05,88028.0,88016.0,0.01136157]
[1767096756131,5.6e-05,88028.0,88017.0,0.06816854]
[1767096756338,5.6e-05,88028.0,88018.0,0.01136131]
[1767096756537,5.6e-05,88028.0,88017.0,0.06816854]
[1767096756834,5.6e-05,88028.0,88018.0,0.01136131]
[1767096757214,5.6e-05,88028.0,88017.0,0.06816854]
[1767096757824,5.6e-05,88028.0,88017.0,0.01136144]
[1767096758041,5.6e-05,88028.0,88016.0,0.01136157]
[1767096758412,5.6e-05,88028.0,88015.0,0.01136169]
[1767096758977,5.6e-05,88028.0,88016.0,0.01136157]
[1767096759481,5.6e-05,88028.0,88015.0,0.01136169]
[1767096759623,5.6e-05,88028.0,88016.0,0.01136157]
[1767096760534,0.01136053,88024.0,88013.0,0.0114]
[1767096760733,0.01136027,88026.0,88013.0,0.0114]
[1767096760734,0.000549,88016.0,88013.0,0.0114]
[1767096761143,0.01136015,88027.0,88013.0,0.0114]
[1767096761546,0.01136015,88027.0,88013.0,0.02276195]
[1767096762239,0.01136015,88027.0,88014.0,0.01136182]
[1767096762433,0.01136015,88027.0,88013.0,0.02276195]
[1767096762637,0.06821671,88028.0,88013.0,0.02276195]
[1767096763195,0.01136015,88027.0,88013.0,0.0114]
[1767096763397,0.01136027,88026.0,88013.0,0.02276195]
[1767096763603,0.01136015,88027.0,88013.0,0.02276195]
[1767096763791,0.01136027,88026.0,88013.0,0.0114]
[1767096763962,0.01136027,88026.0,88013.0,0.02276195]
[1767096764160,0.01136015,88027.0,88013.0,0.0114]
[1767096764350,0.01136027,88026.0,88013.0,0.02276195]
[1767096764750,0.01136015,88027.0,88013.0,0.02276195]
[1767096764987,0.06821671,88028.0,88013.0,0.02276195]
[1767096765303,0.06821671,88028.0,88014.0,0.01136182]
[1767096765480,0.01136015,88027.0,88013.0,0.02276195]
[1767096765695,0.01141602,88028.0,88015.0,0.01136169]
[1767096765891,0.01141602,88028.0,88012.0,0.01136208]
[1767096766234,0.01141602,88028.0,88016.0,0.0114]
[1767096766413,0.01136015,88027.0,88016.0,0.0114]
[1767096766560,0.01136079,88022.0,88016.0,0.0114]
[1767096766762,0.0113604,88025.0,88016.0,0.0114]
[1767096766763,0.05680301,88024.0,88016.0,0.0114]
[1767096767002,0.01136066,88023.0,88010.0,0.01136234]
[1767096767177,0.000549,88016.0,88007.0,0.0114]
[1767096767400,5.269e-05,88016.0,88007.0,0.0114]
[1767096768244,5.269e-05,88016.0,88007.0,0.02276273]
[1767096768583,5.269e-05,88016.0,88007.0,0.0114]
[1767096768890,5.269e-05,88016.0,88004.0,8.85e-05]
[1767096769162,5.269e-05,88016.0,88004.0,0.0114885]
[1767096769734,0.01141426,88016.0,88004.0,0.0114885]
[1767096770068,5.269e-05,88016.0,88004.0,0.0114885]
[1767096770233,0.01141426,88016.0,88004.0,0.0114885]
[1767096770869,5.269e-05,88016.0,88004.0,0.0114885]
[1767096771662,5.269e-05,88016.0,88004.0,0.02285161]
[1767096773062,5.269e-05,88016.0,88005.0,0.01136299]
[1767096774047,5.269e-05,88016.0,88006.0,0.01136286]
[1767096775978,5.269e-05,88016.0,88005.0,0.01136299]
[1767096776422,5.269e-05,88016.0,88004.0,0.02285161]
[1767096776630,5.269e-05,88016.0,88005.0,0.01136299]
[1767096777329,5.269e-05,88016.0,88004.0,0.02285161]
[1767096777527,5.269e-05,88016.0,88005.0,0.01136299]
[1767096777789,5.269e-05,88016.0,88004.0,0.02285161]
[1767096777949,5.269e-05,88016.0,88005.0,0.01136299]
[1767096778144,5.269e-05,88016.0,88006.0,0.01136286]
[1767096778689,5.269e-05,88016.0,88004.0,0.0114885]
[1767096778914,5.269e-05,88016.0,88005.0,0.01136299]
[1767096780785,5.269e-05,88016.0,88004.0,0.02285161]
[1767096781032,5.269e-05,88016.0,88005.0,0.01136299]
[1767096781153,5.269e-05,88016.0,88004.0,0.0114885]
[1767096781503,5.269e-05,88016.0,88004.0,0.02285161]
[1767096781708,5.269e-05,88016.0,88004.0,0.0114885]
[1767096781851,5.269e-05,88016.0,88004.0,0.02285161]
[1767096782316,5.269e-05,88016.0,88005.0,0.01136299]
[1767096782914,5.269e-05,88016.0,88004.0,0.02285161]
[1767096783109,5.269e-05,88016.0,88005.0,0.01136299]
[1767096783451,5.269e-05,88016.0,88004.0,0.02285161]
[1767096785047,5.269e-05,88016.0,88004.0,0.0114885]
[1767096785189,5.269e-05,88016.0,88004.0,0.02285161]
[1767096785393,0.01136169,88015.0,88004.0,0.0114885]
[1767096785615,0.01141426,88016.0,88004.0,0.0114885]
[1767096785812,5.269e-05,88016.0,88004.0,0.0114885]
[1767096786032,5.269e-05,88016.0,88004.0,0.02285161]
[1767096788596,0.01141426,88016.0,88004.0,0.0114885]
[1767096788908,0.01141426,88016.0,88004.0,8.85e-05]
[1767096789124,5.269e-05,88016.0,88004.0,8.85e-05]
[1767096789522,0.01141426,88016.0,88004.0,8.85e-05]
[1767096789729,0.01136169,88015.0,88004.0,8.85e-05]
[1767096789930,0.01141426,88016.0,88004.0,8.85e-05]
[1767096790731,5.269e-05,88016.0,88004.0,8.85e-05]
[1767096790931,0.01136182,88014.0,88004.0,8.85e-05]
[1767096791116,0.01136169,88015.0,88004.0,8.85e-05]
[1767096793075,5.269e-05,88016.0,88004.0,8.85e-05]
[1767096793235,0.01141426,88016.0,88004.0,8.85e-05]
[1767096793783,0.01136169,88015.0,88004.0,8.85e-05]
[1767096794157,5.269e-05,88016.0,88004.0,8.85e-05]
[1767096796053,0.01136169,88015.0,88004.0,8.85e-05]
[1767096797456,0.01136182,88014.0,88004.0,8.85e-05]
[1767096798165,0.01136169,88015.0,88004.0,8.85e-05]
[1767096799359,0.01141426,88016.0,88004.0,8.85e-05]
[1767096799566,5.269e-05,88016.0,88004.0,8.85e-05]
[1767096800196,5.269e-05,88016.0,88004.0,0.01145161]
[1767096800969,5.269e-05,88016.0,88004.0,8.85e-05]
[1767096801177,5.269e-05,88016.0,88005.0,0.01136299]
[1767096801832,5.269e-05,88016.0,88004.0,8.85e-05]
[1767096802036,5.269e-05,88016.0,88004.0,0.01145161]
[1767096802234,0.01141426,88016.0,88004.0,8.85e-05]
[1767096802395,5.269e-05,88016.0,88004.0,8.85e-05]
[1767096802815,5.269e-05,88016.0,88004.0,0.01145161]
[1767096803086,5.269e-05,88016.0,88004.0,8.85e-05]
[1767096804176,5.269e-05,88016.0,88005.0,0.01136299]
[1767096804844,5.269e-05,88016.0,88004.0,0.01145161]
[1767096805047,5.269e-05,88016.0,88007.0,0.01136273]
[1767096805260,6.9e-07,88016.0,88010.0,0.01136234]
[1767096805456,6.9e-07,88016.0,88009.0,0.01136247]
[1767096805783,6.9e-07,88016.0,88008.0,0.0113626]
[1767096806986,0.01136079,88022.0,88008.0,0.0113626]
[1767096806987,0.02766439,88029.0,88010.0,0.01136234]
[1767096807184,0.03086735,88032.0,88029.0,0.000498]
[1767096807185,0.0002,88032.0,88029.0,0.000498]
[1767096807360,0.0002,88032.0,88029.0,0.00085536]
[1767096807559,1e-08,88030.0,88029.0,0.00035736]
[1767096813697,8.011e-05,88030.0,88029.0,0.00035736]
[1767096813914,1.1e-07,88030.0,88029.0,0.00035736]
[1767096815411,1.1e-07,88030.0,88029.0,3.6e-07]
[1767096818034,0.00015769,88032.0,88029.0,3.6e-07]
[1767096818429,6.9e-07,88032.0,88029.0,3.6e-07]
[1767096822249,6.9e-07,88032.0,88029.0,0.01136025]
[1767096822649,0.01081774,88040.0,88030.0,0.01135976]
[1767096822850,0.01081774,88040.0,88030.0,0.5119542]
[1767096823068,0.01081774,88040.0,88030.0,0.52331396]
[1767096823411,0.0001466,88041.0,88031.0,0.01135963]
[1767096823599,0.00059302,88034.0,88031.0,0.06815736]
[1767096823904,0.0004,88043.0,88030.0,0.59151241]
[1767096823905,0.0004,88043.0,88040.0,0.01135847]
[1767096824151,0.0004,88043.0,88040.0,0.06815046]
[1767096824314,0.0004,88044.0,88039.0,0.14931]
[1767096824515,0.0004,88044.0,88039.0,0.0114]
[1767096825314,0.00047282,88039.0,88034.0,0.00051619]
[1767096825561,0.0004,88044.0,88035.0,0.0114]
[1767096825835,0.0004,88044.0,88036.0,0.0114]
[1767096825836,0.0113586,88039.0,88036.0,0.0114]
[1767096826045,0.0113586,88039.0,88034.0,0.00051619]
[1767096826046,0.00055,88035.0,88034.0,0.00051619]
[1767096826208,0.14325,88039.0,88037.0,0.0114]
[1767096826844,0.14325,88039.0,88037.0,0.010927]
[1767096827659,0.0004,88044.0,88039.0,0.000549]
[1767096827809,0.01135808,88043.0,88037.0,0.010927]
[1767096828006,0.14325,88041.0,88037.0,0.010377]
[1767096828870,0.142701,88041.0,88037.0,0.01008062]
[1767096829639,0.01175795,88044.0,88037.0,0.01008062]
[1767096830180,0.01135808,88043.0,88037.0,0.01008062]
[1767096830967,0.01175795,88044.0,88037.0,0.01008062]
[1767096831149,0.01135808,88043.0,88037.0,0.01008062]
[1767096831535,0.01135821,88042.0,88037.0,0.01008062]
[1767096832743,0.06814977,88042.0,88037.0,0.01008062]
[1767096832967,0.01135847,88040.0,88034.0,0.00051619]
[1767096833184,0.01135886,88037.0,88034.0,1.9e-07]
[1767096833359,0.01135886,88037.0,88020.0,0.01136105]
[1767096833360,0.05679531,88036.0,88020.0,0.01136105]
[1767096833559,0.5119542,88030.0,88019.0,0.0001466]
[1767096833759,0.01135963,88031.0,88020.0,0.5233542]
[1767096834007,0.01135937,88033.0,88020.0,0.5233542]
[1767096834228,0.01135911,88035.0,88020.0,0.53471525]
[1767096834352,0.01135924,88034.0,88020.0,0.53471525]
[1767096834776,0.06851102,88036.0,88022.0,0.01136079]
[1767096835015,1e-08,88044.0,88035.0,0.03635992]
[1767096835225,0.0409248,88070.0,88057.0,0.14411]
[1767096835226,0.02450069,88070.0,88057.0,0.14411]
[1767096835420,0.0002084,88074.0,88064.0,0.03635992]
[1767096835593,0.0002084,88074.0,88065.0,0.0114]
[1767096835594,0.00031543,88074.0,88065.0,0.0114]
[1767096835797,0.00031543,88074.0,88066.0,0.01135512]
[1767096836006,0.00031543,88074.0,88065.0,0.0114]
[1767096836401,0.00031543,88074.0,88065.0,0.02275524]
[1767096836758,0.00031543,88074.0,88065.0,0.0114]
[1767096837952,0.01166951,88074.0,88065.0,0.0114]
[1767096838315,0.00031543,88074.0,88065.0,0.0114]
[1767096838746,0.00031543,88074.0,88065.0,0.01110374]
[1767096839950,0.01166951,88074.0,88065.0,0.01110374]
[1767096840353,0.00031543,88074.0,88065.0,0.01110374]
[1767096841971,0.01166951,88074.0,88065.0,0.01110374]
[1767096842551,0.00031543,88074.0,88061.0,0.01135576]
[1767096842752,0.5119542,88071.0,88061.0,0.01135576]
[1767096843299,0.01135473,88069.0,88060.0,0.0114]
[1767096843597,0.01135499,88067.0,88058.0,0.0114]
[1767096844783,0.01135512,88066.0,88058.0,0.0114]
[1767096844980,0.01135537,88064.0,88051.0,0.03635992]
[1767096845216,0.01135512,88066.0,88052.0,0.0114]
[1767096845422,0.0113555,88063.0,88052.0,0.0114]
[1767096845731,0.01135537,88064.0,88052.0,0.04775992]
[1767096846229,0.06813148,88065.0,88052.0,0.04775992]
[1767096846684,0.01135537,88064.0,88053.0,0.0114]
[1767096847637,0.05677487,88068.0,88050.0,0.01135718]
[1767096847638,0.01135576,88061.0,88050.0,0.03635992]
[1767096847839,0.01135576,88061.0,88054.0,0.0114]
[1767096849110,0.0113555,88063.0,88054.0,0.0114]
[1767096850757,0.01135563,88062.0,88054.0,0.0114]
[1767096850965,0.01135576,88061.0,88054.0,0.0114]
[1767096851257,0.01135563,88062.0,88054.0,0.0114]
[1767096851437,0.0113555,88063.0,88054.0,0.0114]
[1767096851913,0.06817208,88072.0,88055.0,0.01135653]
[1767096852128,0.01135512,88066.0,88063.0,0.001066]
[1767096852289,0.57952998,88070.0,88055.0,0.01135653]
[1767096852584,0.06812765,88070.0,88055.0,0.01135653]
[1767096852811,0.57952998,88070.0,88055.0,0.01135653]
[1767096853158,0.01135473,88069.0,88056.0,0.0113564]
[1767096853457,0.01135473,88069.0,88054.0,0.02275666]
[1767096853658,0.01135486,88068.0,88055.0,0.01135653]
[1767096854232,0.01135486,88068.0,88054.0,0.0114]
[1767096854510,0.0113555,88063.0,88054.0,0.0114]
[1767096854711,0.0113555,88063.0,88055.0,0.0114]
[1767096854876,0.01135537,88064.0,88055.0,0.0114]
[1767096855074,0.0113555,88063.0,88055.0,0.0114]
[1767096855299,0.01135512,88066.0,88055.0,0.0114]
[1767096855495,0.01135512,88066.0,88063.0,0.000516]
[1767096855976,0.01135524,88065.0,88056.0,0.0114]
[1767096856158,0.06813121,88066.0,88057.0,0.0114]
[1767096856410,0.01135524,88065.0,88057.0,0.0114]
[1767096856565,0.01135486,88068.0,88057.0,0.0114]
[1767096856777,0.01135512,88066.0,88057.0,0.0114]
[1767096856925,0.01135524,88065.0,88057.0,0.0114]
[1767096858096,0.01135524,88065.0,88051.0,0.13096705]
[1767096858288,0.01135537,88064.0,88052.0,0.0114]
[1767096859297,0.01135537,88064.0,88053.0,0.0114]
[1767096859765,0.06813179,88065.0,88053.0,0.0114]
[1767096859879,0.01135537,88064.0,88054.0,0.0114]
[1767096860085,0.0113555,88063.0,88054.0,0.0114]
[1767096860637,0.01135524,88065.0,88054.0,0.0114]
[1767096860857,0.01135537,88064.0,88054.0,0.0114]
[1767096860999,0.01135537,88064.0,88054.0,0.01135849]
[1767096861197,0.01135524,88065.0,88054.0,0.01135849]
[1767096862614,0.01135537,88064.0,88054.0,0.01135849]
[1767096862812,0.0113555,88063.0,88054.0,0.0114]
[1767096863131,0.5227577,88064.0,88054.0,0.0114]
[1767096863348,0.01135537,88064.0,88054.0,0.0114]
[1767096864055,0.01135537,88064.0,88046.0,0.05678789]
[1767096864056,0.05677882,88061.0,88052.0,0.0114]
[1767096864232,0.01135576,88061.0,88052.0,0.0114]
[1767096864843,0.06813491,88061.0,88046.0,0.01135769]
[1767096865042,0.06813491,88061.0,88052.0,0.0114]
[1767096865246,0.01135589,88060.0,88048.0,0.0114]
[1767096865605,0.01135576,88061.0,88048.0,0.0114]
[1767096865735,0.01135602,88059.0,88048.0,0.0114]
[1767096865937,0.01135589,88060.0,88048.0,0.0114]
[1767096866162,0.01135615,88058.0,88048.0,0.0114]
[1767096866539,0.01135602,88059.0,88048.0,0.0114]
[1767096867200,0.01135615,88058.0,88048.0,0.0114]
[1767096867370,0.01135602,88059.0,88048.0,0.0114]
[1767096867568,0.01135615,88058.0,88048.0,0.0114]
[1767096867764,0.01135602,88059.0,88048.0,0.0114]
[1767096867979,0.0113564,88056.0,88048.0,0.0114]
[1767096868308,0.01135615,88058.0,88048.0,0.0114]
[1767096869337,0.52275822,88060.0,88048.0,0.0114]
[1767096869338,0.51140233,88060.0,88048.0,0.0114]
[1767096869491,0.01135615,88058.0,88048.0,0.0114]
[1767096870427,0.51140233,88060.0,88048.0,0.0114]
[1767096871175,0.01135602,88059.0,88048.0,0.0114]
[1767096872243,0.01135628,88057.0,88048.0,0.0114]
[1767096873046,0.0113564,88056.0,88048.0,0.0114]
[1767096873430,0.01135628,88057.0,88048.0,0.0114]
[1767096873642,0.51140233,88060.0,88048.0,0.0114]
[1767096873824,0.52275822,88060.0,88048.0,0.0114]
[1767096874035,0.01135628,88057.0,88048.0,0.0114]
[1767096874659,0.01135628,88057.0,88033.0,0.165236]
[1767096874660,0.01135718,88050.0,88035.0,0.01135911]
[1767096874907,0.51140233,88050.0,88037.0,0.01135886]
[1767096875078,0.51140233,88050.0,88038.0,0.01135873]
[1767096875282,0.51140233,88050.0,88039.0,0.0113586]
[1767096875662,0.51140233,88050.0,88037.0,0.06815283]
[1767096875663,0.01135769,88046.0,88037.0,0.0114]
[1767096875865,0.01135782,88045.0,88037.0,0.0114]
[1767096876046,0.01135769,88046.0,88037.0,0.0114]
[1767096876221,0.01135782,88045.0,88037.0,0.0114]
[1767096876993,0.01135731,88049.0,88037.0,0.0114]
[1767096877190,0.01135731,88049.0,88045.0,0.000516]
[1767096877191,0.01135744,88048.0,88045.0,0.000516]
[1767096877331,0.01135744,88048.0,88037.0,0.0114]
[1767096877332,0.01135769,88046.0,88037.0,0.0114]
[1767096877756,0.01135782,88045.0,88037.0,0.0114]
[1767096879525,0.01135795,88044.0,88037.0,0.0114]
[1767096879726,0.01135808,88043.0,88037.0,0.0114]
[1767096879946,0.01135795,88044.0,88037.0,0.0114]
[1767096880142,0.05679043,88043.0,88037.0,0.0114]
[1767096880319,0.01135808,88043.0,88037.0,0.0114]
[1767096880523,0.01135821,88042.0,88037.0,0.0114]
[1767096880922,0.01135821,88042.0,88035.0,0.0002]
[1767096881140,0.01135821,88042.0,88035.0,0.00030705]
[1767096881345,0.01135834,88041.0,88035.0,0.00030705]
[1767096881512,0.01135821,88042.0,88035.0,0.00030705]
[1767096885306,0.05678944,88045.0,88035.0,0.00030705]
[1767096885430,0.01135795,88044.0,88035.0,0.00030705]
[1767096886398,0.01135782,88045.0,88035.0,0.00030705]
[1767096886604,0.01135795,88044.0,88035.0,0.00030705]
[1767096887265,0.01135782,88045.0,88035.0,0.00030705]
[1767096887470,0.01135795,88044.0,88035.0,0.00030705]
[1767096888370,0.01135834,88041.0,88033.0,0.00014239]
[1767096888632,0.0113586,88039.0,88033.0,0.00014239]
[1767096888807,0.01135873,88038.0,88033.0,0.00014239]
[1767096889366,0.0113586,88039.0,88033.0,0.00014239]
[1767096889630,0.01135873,88038.0,88033.0,0.00014239]
[1767096889767,0.0113586,88039.0,88033.0,0.00014239]
[1767096890223,0.06815123,88040.0,88033.0,0.00014239]
[1767096890425,0.01135834,88041.0,88033.0,0.00014239]
[1767096890571,0.01135821,88042.0,88033.0,0.00014239]
[1767096890775,0.01135834,88041.0,88033.0,0.00014239]
[1767096891858,0.01135847,88040.0,88033.0,0.00014239]
[1767096892065,0.01135834,88041.0,88033.0,0.00014239]
[1767096892480,0.01135847,88040.0,88033.0,0.00014239]
[1767096893347,0.0114652,88042.0,88040.0,0.000307]
[1767096893776,0.01135847,88040.0,88033.0,0.00014239]
[1767096894385,0.0113586,88039.0,88033.0,0.00014239]
[1767096894630,0.01135847,88040.0,88033.0,0.00014239]
[1767096894792,0.0114652,88042.0,88033.0,0.00014239]
[1767096895012,0.01135834,88041.0,88033.0,0.00014239]
[1767096895227,0.01135847,88040.0,88033.0,0.00014239]
[1767096895780,0.01135834,88041.0,88033.0,0.00014239]
[1767096897375,0.01135834,88041.0,88028.0,0.0114]
[1767096897376,0.01135834,88041.0,88028.0,0.01148619]
[1767096897772,0.01135834,88041.0,88028.0,0.02284621]
[1767096897953,0.01135834,88041.0,88028.0,0.01148619]
[1767096898773,0.00010699,88042.0,88030.0,0.01135976]
[1767096898981,0.00010699,88042.0,88029.0,0.01135989]
[1767096899141,0.0114652,88042.0,88029.0,0.01135989]
[1767096899340,0.0114652,88042.0,88028.0,0.01148619]
[1767096899796,0.01135834,88041.0,88028.0,0.02284621]
[1767096900202,0.01135834,88041.0,88028.0,0.01148619]
[1767096900795,0.0114652,88042.0,88028.0,0.01148619]
[1767096900796,0.0114652,88042.0,88028.0,0.02284621]
[1767096901002,0.5227608,88040.0,88028.0,0.01148619]
[1767096901403,0.00010699,88042.0,88029.0,0.01135989]
[1767096901567,0.0114652,88042.0,88028.0,0.01148619]
[1767096901774,0.51140233,88040.0,88028.0,0.01148619]
[1767096901969,0.00010699,88042.0,88029.0,0.01135989]
[1767096902908,0.00010699,88042.0,88030.0,0.01135976]
[1767096903281,0.00010699,88042.0,88028.0,0.01148619]
[1767096903616,0.0113586,88039.0,88028.0,0.01148619]
[1767096904235,0.01135873,88038.0,88028.0,0.01148619]
[1767096904400,0.01135873,88038.0,88023.0,0.0002]
[1767096904401,0.00015581,88028.0,88023.0,0.0002]
[1767096904776,0.51184384,88033.0,88023.0,0.0002]
[1767096904989,0.52320321,88033.0,88023.0,0.0002]
[1767096905187,0.51184384,88033.0,88023.0,0.0002]
[1767096905843,0.01135937,88033.0,88023.0,0.0002]
[1767096906020,0.51184384,88033.0,88023.0,0.0002]
[1767096907730,0.01135911,88035.0,88023.0,0.0002]
[1767096910649,0.06815658,88033.0,88023.0,0.0002]
[1767096910847,0.51184384,88033.0,88023.0,0.0002]
[1767096911175,0.01135989,88029.0,88023.0,0.0002]
[1767096911362,0.01135976,88030.0,88023.0,0.0002]
[1767096911534,0.01135963,88031.0,88023.0,0.0002]
[1767096911535,0.01136027,88026.0,88023.0,0.0002]
[1767096911735,0.01136027,88026.0,88010.0,0.000147]
[1767096911736,0.01136105,88020.0,88010.0,0.000147]
[1767096912004,0.51145084,88020.0,88010.0,0.000147]
[1767096912321,0.0113604,88025.0,88010.0,0.01150934]
[1767096912322,0.01136053,88024.0,88010.0,0.01150934]
[1767096912500,0.01136053,88024.0,88010.0,0.000147]
[1767096912716,0.01136066,88023.0,88010.0,0.01150934]
[1767096912912,0.01136053,88024.0,88010.0,0.01150934]
[1767096913109,0.01136053,88024.0,88011.0,0.01136221]
[1767096913408,0.01136066,88023.0,88010.0,0.01150934]
[1767096913610,0.02276053,88024.0,88010.0,0.01150934]
[1767096913812,0.01136066,88023.0,88010.0,0.01150934]
[1767096914240,0.01136066,88023.0,88010.0,0.000147]
[1767096914995,0.01136066,88023.0,88010.0,0.01150934]
[1767096915228,0.01136066,88023.0,88010.0,0.000147]
[1767096915729,0.01136079,88022.0,88010.0,0.000147]
[1767096916145,0.51184384,88020.0,88010.0,0.000147]
[1767096916704,0.01136066,88023.0,88010.0,0.01150934]
[1767096917343,0.01136079,88022.0,88010.0,0.000147]
[1767096917716,0.01136118,88019.0,88010.0,0.000147]
[1767096917922,0.01136079,88022.0,88010.0,0.000147]
[1767096918119,0.0921102,88045.0,88015.0,0.01136169]
[1767096918120,0.0114,88021.0,88015.0,0.01136169]
[1767096918317,0.0114,88023.0,88021.0,0.00055]
[1767096919889,0.13929,88026.0,88016.0,0.01136157]
[1767096921061,0.13929,88026.0,88017.0,0.01136144]
[1767096921268,0.13929,88026.0,88016.0,0.01136157]
[1767096922420,0.13929,88026.0,88015.0,0.01136169]
[1767096922683,0.13929,88026.0,88017.0,0.01136144]
[1767096923876,0.13929,88026.0,88016.0,0.01136157]
[1767096924320,0.02275989,88029.0,88016.0,0.01136157]
[1767096924499,0.0114,88029.0,88016.0,0.01136157]
[1767096924704,0.02275989,88029.0,88014.0,0.05680875]
[1767096925050,0.02275989,88029.0,88015.0,0.01136169]
[1767096925902,0.01136002,88028.0,88015.0,0.01136169]
[1767096927435,0.02275989,88029.0,88016.0,0.01136157]
[1767096927884,0.02275989,88029.0,88015.0,0.01136169]
[1767096928268,0.01136027,88026.0,88012.0,0.01136208]
[1767096928415,0.01136027,88026.0,88013.0,0.01136195]
[1767096928761,0.06816044,88028.0,88014.0,0.01136182]
[1767096928927,0.02275989,88029.0,88016.0,0.01136157]
[1767096929668,0.0114,88029.0,88018.0,0.01136131]
[1767096929832,0.0114,88029.0,88017.0,0.01136144]
[1767096930028,0.0114,88029.0,88016.0,0.01136157]
[1767096930228,0.0114,88029.0,88017.0,0.01136144]